fUSD/lending_fUSD_20250811
["ID","MTS","AMOUNT","RATE_DAILY","PERIOD"]
[378481452,1754883033345,-400.0,0.00018852,2]
[378481453,1754883033355,-400.0,0.00018852,2]
[378481454,1754883033364,-400.0,0.00018852,2]
[378481455,1754883033373,-400.0,0.00018852,2]
[378481456,1754883033383,-400.0,0.00018852,2]
[378481457,1754883033393,-1000.0,0.00018852,2]
[378481459,1754883033403,-400.0,0.00018852,2]
[378481460,1754883033412,-400.0,0.00018852,2]
[378481461,1754883033421,-511.34,0.00018852,2]
[378481462,1754883033430,-400.0,0.00018852,2]
[378481463,1754883033440,-1008.68,0.00018852,2]
[378481464,1754883033449,-409.19961773,0.00018852,2]
[378481465,1754883033458,-400.0,0.00018852,2]
[378481466,1754883033468,-437.50070443,0.00018852,2]
[378481467,1754883033478,-530.04,0.00018852,2]
[378481468,1754883033487,-723.21,0.00018852,2]
[378481469,1754883033496,-400.0,0.00018852,2]
[378481470,1754883033506,-2076.61,0.00018852,2]
[378481471,1754883033515,-400.0,0.00018852,2]
[378481472,1754883033525,-480.56,0.00018852,2]
[378481473,1754883033535,-400.0,0.00018852,2]
[378481474,1754883033546,-400.0,0.00018852,2]
[378481475,1754883033559,-590.79,0.00018852,2]
[378481476,1754883033569,-599.08,0.00018852,2]
[378481477,1754883033578,-400.0,0.00018852,2]
[378481478,1754883033590,-924.19,0.00018852,2]
[378481479,1754883033600,-456.1,0.00018852,2]
[378481480,1754883033610,-830.85,0.00018852,2]
[378481481,1754883033620,-400.0,0.00018852,2]
[378481482,1754883033632,-400.0,0.00018852,2]
[378481483,1754883033642,-697.8,0.00018852,2]
[378481484,1754883033652,-918.97,0.00018852,2]
[378481485,1754883033661,-400.0,0.00018852,2]
[378481486,1754883033671,-493.66,0.00018852,2]
[378481487,1754883033680,-400.0,0.00018852,2]
[378481488,1754883033690,-528.08,0.00018852,2]
[378481489,1754883033701,-400.0,0.00018852,2]
[378481490,1754883033711,-690.53,0.00018852,2]
[378481491,1754883033722,-400.0,0.00018852,2]
[378481492,1754883033731,-410.81,0.00018852,2]
[378481493,1754883033741,-868.24,0.00018852,2]
[378481494,1754883033750,-400.0,0.00018852,2]
[378481495,1754883033759,-1082.13,0.00018852,2]
[378481496,1754883033769,-881.13,0.00018852,2]
[378481497,1754883033778,-400.0,0.00018852,2]
[378481498,1754883033788,-932.71,0.00018852,2]
[378481499,1754883033797,-546.87,0.00018852,2]
[378481500,1754883033807,-811.41,0.00018852,2]
[378481501,1754883033817,-400.0,0.00018852,2]
[378481502,1754883033826,-400.0,0.00018852,2]
[378481503,1754883033836,-402.67618986,0.00018852,2]
[378481504,1754883033845,-619.41,0.00018852,2]
[378481505,1754883033855,-413.04,0.00018852,2]
[378481506,1754883033865,-1095.43,0.00018852,2]
[378481507,1754883033874,-400.0,0.00018852,2]
[378481508,1754883033884,-1234.77,0.00018852,2]
[378481509,1754883033894,-467.94,0.00018852,2]
[378481510,1754883033903,-469.86,0.00018852,2]
[378481511,1754883033912,-401.32373715,0.00018852,2]
[378481512,1754883033921,-1254.35,0.00018852,2]
[378481513,1754883033931,-400.0,0.00018852,2]
[378481514,1754883033940,-716.9,0.00018852,2]
[378481515,1754883033949,-400.0,0.00018852,2]
[378481516,1754883033958,-557.79,0.00018852,2]
[378481517,1754883033968,-400.0,0.00018852,2]
[378481518,1754883033977,-478.13,0.00018852,2]
[378481519,1754883033987,-467.89,0.00018852,2]
[378481520,1754883033996,-400.0,0.00018852,2]
[378481521,1754883034006,-400.0,0.00018852,2]
[378481522,1754883034015,-400.0,0.00018852,2]
[378481523,1754883034024,-400.0,0.00018852,2]
[378481524,1754883034034,-485.96,0.00018852,2]
[378481525,1754883034044,-594.49,0.00018852,2]
[378481526,1754883034054,-996.8,0.00018852,2]
[378481527,1754883034063,-593.56,0.00018852,2]
[378481528,1754883034072,-649.26,0.00018852,2]
[378481529,1754883034082,-464.66,0.00018852,2]
[378481530,1754883034093,-519.45,0.00018852,2]
[378481531,1754883034105,-400.0,0.00018852,2]
[378481532,1754883034118,-400.0,0.00018852,2]
[378481533,1754883034129,-455.32,0.00018852,2]
[378481534,1754883034138,-400.0,0.00018852,2]
[378481535,1754883034147,-400.0,0.00018852,2]
[378481536,1754883034157,-578.38,0.00018852,2]
[378481537,1754883034167,-460.29,0.00018852,2]
[378481538,1754883034176,-1488.78,0.00018852,2]
[378481539,1754883034186,-400.0,0.00018852,2]
[378481540,1754883034196,-741.79,0.00018852,2]
[378481541,1754883034206,-876.35,0.00018852,2]
[378481542,1754883034215,-500.0,0.00018852,2]
[378481543,1754883034225,-798.85,0.00018852,2]
[378481544,1754883034235,-981.16,0.00018852,2]
[378481545,1754883034245,-585.7,0.00018852,2]
[378481546,1754883034255,-566.17,0.00018852,2]
[378481547,1754883034265,-756.32,0.00018852,2]
[378481548,1754883034274,-326.719402,0.00018852,2]
[378481549,1754883034284,-953.03,0.00018852,2]
[378481550,1754883034295,-570.969985,0.00018852,2]
[378481551,1754883034304,-400.0,0.00018852,2]
[378481552,1754883034315,-1993.17,0.00018852,2]
[378481553,1754883034337,-400.0,0.00018852,2]
[378481554,1754883034348,-532.93,0.00018852,2]
[378481555,1754883034358,-500.0,0.00018852,2]
[378481556,1754883034367,-434.24674577,0.00018852,2]
[378481557,1754883034377,-1253.76,0.00018852,2]
[378481558,1754883034387,-400.0,0.00018852,2]
[378481559,1754883034396,-915.27,0.00018852,2]
[378481560,1754883034405,-1155.6143741,0.00018852,2]
[378481561,1754883034422,-325.5656259,0.00018852,2]
[378481562,1754883034432,-1085.0,0.00018852,2]
[378481563,1754883034441,-171.47460049,0.00018852,2]
[378481564,1754883034453,-845.88539951,0.00018852,2]
[378481565,1754883034462,-603.67591554,0.00018852,2]
[378481567,1754883034500,-400.30306213,0.00018851,2]
[378481568,1754883034510,-215.31408446,0.00018852,2]
[378481569,1754883034519,-550.811671,0.00018852,2]
[378481570,1754883034529,-1485.24,0.00018852,2]
[378481571,1754883034539,-400.0,0.00018852,2]
[378481572,1754883034552,-668.18941927,0.00018852,2]
[378481573,1754883034563,-234.70058073,0.00018852,2]
[378481574,1754883034572,-1177.75,0.00018852,2]
[378481575,1754883034581,-1063.76,0.00018852,2]
[378481576,1754883034592,-400.0,0.00018852,2]
[378481577,1754883034602,-289.10086638,0.00018852,2]
[378481578,1754883034611,-413.69,0.00018852,2]
[378481579,1754883034621,-453.62,0.00018852,2]
[378481580,1754883034641,-1222.65,0.00018852,2]
[378481581,1754883034651,-400.0,0.00018852,2]
[378481582,1754883034660,-701.9,0.00018852,2]
[378481583,1754883034670,-400.0,0.00018852,2]
[378481584,1754883034679,-1194.24,0.00018852,2]
[378481585,1754883034689,-1356.42,0.00018852,2]
[378481586,1754883034699,-509.78,0.00018852,2]
[378481587,1754883034708,-815.04,0.00018852,2]
[378481588,1754883034718,-509.13,0.00018852,2]
[378481589,1754883034728,-1470.43,0.00018852,2]
[378481590,1754883034737,-400.0,0.00018852,2]
[378481591,1754883034746,-1124.33,0.00018852,2]
[378481592,1754883034755,-400.0,0.00018852,2]
[378481593,1754883034765,-817.3,0.00018852,2]
[378481594,1754883034775,-2312.13,0.00018852,2]
[378481595,1754883034784,-535.0,0.00018852,2]
[378481596,1754883034797,-400.0,0.00018852,2]
[378481597,1754883034806,-3347.89,0.00018852,2]
[378481598,1754883034815,-627.61583558,0.00018852,2]
[378481600,1754883034876,-272.04416442,0.00018852,2]
[378481601,1754883034887,-400.0,0.00018852,2]
[378481602,1754883034909,-180.39700294,0.00018852,2]
[378481613,1754883037889,-237.94124287,0.00018851,2]
[378481614,1754883037899,-320.57751548,0.00018851,2]
[378481615,1754883037910,-500.0,0.00018851,2]
[378481616,1754883037920,-291.04737926,0.00018851,2]
[378481617,1754883037929,-403.63278534,0.00018851,2]
[378481618,1754883037939,-500.0,0.00018851,2]
[378481619,1754883037949,-500.0,0.00018851,2]
[378481620,1754883037958,-491.46414448,0.00018851,2]
[378481621,1754883037968,-730.85,0.00018851,2]
[378481622,1754883037978,-1270.78299706,0.00018852,2]
[378481623,1754883037987,-476.66,0.00018852,2]
[378481624,1754883037997,-668.98,0.00018852,2]
[378481625,1754883038006,-726.09,0.00018852,2]
[378481626,1754883038016,-400.0,0.00018852,2]
[378481627,1754883038026,-400.0,0.00018852,2]
[378481628,1754883038036,-400.0,0.00018852,2]
[378481629,1754883038047,-542.48,0.00018852,2]
[378481630,1754883038056,-655.0,0.00018852,2]
[378481631,1754883038066,-521.3,0.00018852,2]
[378481632,1754883038075,-940.71,0.00018852,2]
[378481633,1754883038085,-858.7,0.00018852,2]
[378481634,1754883038094,-3678.04,0.00018852,2]
[378481635,1754883038103,-400.0,0.00018852,2]
[378481636,1754883038113,-1418.11,0.00018852,2]
[378481637,1754883038122,-419.26,0.00018852,2]
[378481638,1754883038132,-400.0,0.00018852,2]
[378481639,1754883038141,-1047.48,0.00018852,2]
[378481640,1754883038150,-1378.18,0.00018852,2]
[378481641,1754883038160,-815.08,0.00018852,2]
[378481642,1754883038169,-1178.1,0.00018852,2]
[378481643,1754883038179,-483.47,0.00018852,2]
[378481644,1754883038188,-400.0,0.00018852,2]
[378481645,1754883038198,-536.8,0.00018852,2]
[378481646,1754883038208,-400.0,0.00018852,2]
[378481647,1754883038219,-400.0,0.00018852,2]
[378481648,1754883038228,-828.31,0.00018852,2]
[378481649,1754883038238,-743.06,0.00018852,2]
[378481650,1754883038247,-400.0,0.00018852,2]
[378481651,1754883038258,-1118.12,0.00018852,2]
[378481652,1754883038268,-1294.86,0.00018852,2]
[378481653,1754883038278,-1806.66,0.00018852,2]
[378481654,1754883038287,-400.0,0.00018852,2]
[378481655,1754883038300,-979.63,0.00018852,2]
[378481656,1754883038310,-671.84,0.00018852,2]
[378481657,1754883038319,-501.29,0.00018852,2]
[378481658,1754883038329,-653.37,0.00018852,2]
[378481659,1754883038339,-1054.71,0.00018852,2]
[378481660,1754883038349,-400.0,0.00018852,2]
[378481661,1754883038359,-400.0,0.00018852,2]
[378481662,1754883038368,-663.36,0.00018852,2]
[378481664,1754883038377,-567.33,0.00018852,2]
[378481666,1754883038387,-400.0,0.00018852,2]
[378481668,1754883038397,-655.43,0.00018852,2]
[378481670,1754883038406,-948.76,0.00018852,2]
[378481672,1754883038416,-534.33,0.00018852,2]
[378481674,1754883038425,-1143.56,0.00018852,2]
[378481676,1754883038434,-400.0,0.00018852,2]
[378481678,1754883038444,-400.0,0.00018852,2]
[378481680,1754883038453,-587.06,0.00018852,2]
[378481682,1754883038462,-591.5,0.00018852,2]
[378481684,1754883038472,-1035.75,0.00018852,2]
[378481686,1754883038485,-400.0,0.00018852,2]
[378481688,1754883038495,-400.0,0.00018852,2]
[378481690,1754883038504,-456.85,0.00018852,2]
[378481692,1754883038514,-400.0,0.00018852,2]
[378481694,1754883038523,-1217.21,0.00018852,2]
[378481697,1754883038533,-1054.17,0.00018852,2]
[378481699,1754883038542,-3189.49904842,0.00018852,2]
[378481709,1754883038633,-476.55,0.00018851,2]
[378481711,1754883038642,-797.34095158,0.00018852,2]
[378481713,1754883038652,-750.88,0.00018852,2]
[378481715,1754883038661,-828.52,0.00018852,2]
[378481717,1754883038672,-773.66,0.00018852,2]
[378481719,1754883038681,-400.0,0.00018852,2]
[378481721,1754883038691,-610.33,0.00018852,2]
[378481723,1754883038700,-1159.59,0.00018852,2]
[378481725,1754883038709,-400.0,0.00018852,2]
[378481727,1754883038719,-1295.92,0.00018852,2]
[378481729,1754883038728,-1295.92,0.00018852,2]
[378481731,1754883038737,-1341.43,0.00018852,2]
[378481733,1754883038747,-400.0,0.00018852,2]
[378481735,1754883038756,-1322.19,0.00018852,2]
[378481737,1754883038765,-1043.08,0.00018852,2]
[378481739,1754883038774,-400.0,0.00018852,2]
[378481741,1754883038783,-499.81586825,0.00018852,2]
[378481743,1754883038794,-400.0,0.00018852,2]
[378481745,1754883038803,-492.01567465,0.00018852,2]
[378481747,1754883038812,-408.22305714,0.00018852,2]
[378481749,1754883038822,-914.04,0.00018852,2]
[378481751,1754883038831,-813.92,0.00018852,2]
[378481752,1754883038840,-992.25,0.00018852,2]
[378481754,1754883038850,-859.48,0.00018852,2]
[378481756,1754883038859,-400.0,0.00018852,2]
[378481758,1754883038869,-400.0,0.00018852,2]
[378481760,1754883038878,-1173.21,0.00018852,2]
[378481762,1754883038887,-648.17,0.00018852,2]
[378481764,1754883038896,-462.79,0.00018852,2]
[378481766,1754883038905,-858.07,0.00018852,2]
[378481768,1754883038915,-524.65,0.00018852,2]
[378481770,1754883038924,-821.37,0.00018852,2]
[378481772,1754883038934,-697.48,0.00018852,2]
[378481774,1754883038943,-483.14,0.00018852,2]
[378481776,1754883038953,-1155.72,0.00018852,2]
[378481778,1754883038962,-1321.4,0.00018852,2]
[378481780,1754883038972,-1107.57,0.00018852,2]
[378481782,1754883038981,-721.64,0.00018852,2]
[378481784,1754883038991,-400.0,0.00018852,2]
[378481786,1754883039001,-400.0,0.00018852,2]
[378481788,1754883039011,-819.26,0.00018852,2]
[378481790,1754883039020,-685.69,0.00018852,2]
[378481792,1754883039028,-737.81,0.00018852,2]
[378481794,1754883039039,-875.37,0.00018852,2]
[378481796,1754883039049,-400.0,0.00018852,2]
[378481798,1754883039058,-3895.66,0.00018852,2]
[378481800,1754883039067,-1141.09,0.00018852,2]
[378481802,1754883039077,-428.38,0.00018852,2]
[378481804,1754883039086,-2026.02,0.00018852,2]
[378481806,1754883039095,-1425.84,0.00018852,2]
[378481808,1754883039105,-855.14,0.00018852,2]
[378481810,1754883039115,-400.0,0.00018852,2]
[378481812,1754883039124,-694.66,0.00018852,2]
[378481814,1754883039133,-246.11213683,0.00018852,2]
[378481816,1754883039143,-417.86,0.00018852,2]
[378481818,1754883039152,-1182.12,0.00018852,2]
[378481820,1754883039162,-824.22,0.00018852,2]
[378481822,1754883039172,-400.0,0.00018852,2]
[378481824,1754883039182,-1125.63,0.00018852,2]
[378481826,1754883039191,-400.0,0.00018852,2]
[378481828,1754883039200,-696.45,0.00018852,2]
[378481830,1754883039211,-1259.25,0.00018852,2]
[378481832,1754883039221,-573.9,0.00018852,2]
[378481834,1754883039230,-400.0,0.00018852,2]
[378481836,1754883039240,-692.66,0.00018852,2]
[378481838,1754883039250,-474.5,0.00018852,2]
[378481840,1754883039259,-663.5,0.00018852,2]
[378481842,1754883039269,-1606.23,0.00018852,2]
[378481844,1754883039279,-525.77,0.00018852,2]
[378481846,1754883039287,-1303.68,0.00018852,2]
[378481848,1754883039299,-401.81086694,0.00018852,2]
[378481850,1754883039308,-658.85,0.00018852,2]
[378481852,1754883039317,-550.83,0.00018852,2]
[378481855,1754883039327,-402.54660199,0.00018852,2]
[378481857,1754883039336,-400.0,0.00018852,2]
[378481859,1754883039345,-400.0,0.00018852,2]
[378481861,1754883039354,-400.0,0.00018852,2]
[378481862,1754883039363,-1737.24,0.00018852,2]
[378481864,1754883039373,-400.0,0.00018852,2]
[378481866,1754883039382,-400.0,0.00018852,2]
[378481868,1754883039392,-400.0,0.00018852,2]
[378481871,1754883039401,-820.19,0.00018852,2]
[378481872,1754883039410,-644.65,0.00018852,2]
[378481873,1754883039419,-400.0,0.00018852,2]
[378481874,1754883039428,-411.61196973,0.00018852,2]
[378481875,1754883039437,-1824.32,0.00018852,2]
[378481876,1754883039446,-527.21,0.00018852,2]
[378481877,1754883039455,-1445.09,0.00018852,2]
[378481878,1754883039464,-428.38,0.00018852,2]
[378481879,1754883039473,-741.8,0.00018852,2]
[378481880,1754883039483,-400.0,0.00018852,2]
[378481881,1754883039492,-400.0,0.00018852,2]
[378481882,1754883039502,-527.78798233,0.00018852,2]
[378481883,1754883039511,-400.0,0.00018852,2]
[378481884,1754883039520,-1568.99,0.00018852,2]
[378481885,1754883039529,-419.06,0.00018852,2]
[378481886,1754883039539,-400.0,0.00018852,2]
[378481887,1754883039550,-1444.73,0.00018852,2]
[378481888,1754883039559,-400.0,0.00018852,2]
[378481889,1754883039568,-400.0,0.00018852,2]
[378481890,1754883039577,-400.0,0.00018852,2]
[378481892,1754883039587,-620.07,0.00018852,2]
[378481894,1754883039598,-400.0,0.00018852,2]
[378481896,1754883039607,-400.0,0.00018852,2]
[378481898,1754883039617,-400.0,0.00018852,2]
[378481900,1754883039626,-400.0,0.00018852,2]
[378481902,1754883039636,-673.74,0.00018852,2]
[378481904,1754883039645,-400.0,0.00018852,2]
[378481906,1754883039654,-400.0,0.00018852,2]
[378481908,1754883039663,-1124.98,0.00018852,2]
[378481910,1754883039672,-2487.65,0.00018852,2]
[378481912,1754883039681,-812.17,0.00018852,2]
[378481914,1754883039690,-2734.95,0.00018852,2]
[378481917,1754883039699,-284.11,0.00018852,2]
[378481920,1754883039709,-400.0,0.00018852,2]
[378481922,1754883039719,-465.27,0.00018852,2]
[378481924,1754883039728,-400.0,0.00018852,2]
[378481926,1754883039738,-400.0,0.00018852,2]
[378481928,1754883039747,-400.0,0.00018853,2]
[378481930,1754883039757,-401.12041741,0.00018853,2]
[378481932,1754883039766,-402.22084586,0.00018853,2]
[378481934,1754883039775,-401.43413036,0.00018853,2]
[378481936,1754883039786,-367.40285126,0.00018853,2]
[378481938,1754883039796,-400.0,0.00018853,2]
[378481940,1754883039805,-400.0,0.00018853,2]
[378481942,1754883039815,-400.0,0.00018853,2]
[378481944,1754883039823,-400.0,0.00018853,2]
[378481947,1754883039833,-400.0,0.00018853,2]
[378481949,1754883039842,-400.0,0.00018853,2]
[378481951,1754883039851,-400.0,0.00018853,2]
[378481953,1754883039861,-400.0,0.00018853,2]
[378481955,1754883039870,-400.0,0.00018853,2]
[378481957,1754883039879,-300.0,0.00018853,2]
[378481959,1754883039888,-400.0,0.00018853,2]
[378481961,1754883039897,-400.0,0.00018853,2]
[378481963,1754883039907,-521.36,0.00018853,2]
[378481965,1754883039916,-400.0,0.00018853,2]
[378481967,1754883039925,-400.0,0.00018853,2]
[378481969,1754883039935,-400.0,0.00018853,2]
[378481971,1754883039944,-400.0,0.00018853,2]
[378481973,1754883039953,-400.0,0.00018853,2]
[378481975,1754883039962,-400.0,0.00018853,2]
[378481977,1754883039971,-400.0,0.00018853,2]
[378481979,1754883039981,-468.66,0.00018853,2]
[378481981,1754883039990,-400.0,0.00018853,2]
[378481983,1754883039999,-646.68,0.00018853,2]
[378481985,1754883040009,-482.45,0.00018853,2]
[378481987,1754883040018,-410.07,0.00018853,2]
[378481989,1754883040027,-472.25,0.00018853,2]
[378481991,1754883040037,-400.0,0.00018853,2]
[378481993,1754883040047,-169.25827193,0.00018853,2]
[378481995,1754883040055,-400.0,0.00018853,2]
[378481997,1754883040065,-400.0,0.00018853,2]
[378482027,1754883040330,-489.11,0.00018853,2]
[378482029,1754883040339,-512.4,0.00018853,2]
[378482031,1754883040349,-400.0,0.00018853,2]
[378482033,1754883040358,-528.1,0.00018853,2]
[378482035,1754883040368,-400.0,0.00018853,2]
[378482037,1754883040377,-519.35653835,0.00018853,2]
[378482039,1754883040386,-400.0,0.00018853,2]
[378482041,1754883040396,-389.06561074,0.00018853,2]
[378482043,1754883040406,-400.0,0.00018853,2]
[378482045,1754883040415,-552.39,0.00018853,2]
[378482047,1754883040424,-400.0,0.00018853,2]
[378482049,1754883040434,-1478.6,0.00018853,2]
[378482051,1754883040443,-400.0,0.00018853,2]
[378482053,1754883040454,-400.0,0.00018853,2]
[378482055,1754883040463,-400.0,0.00018853,2]
[378482057,1754883040473,-400.0,0.00018853,2]
[378482059,1754883040482,-400.0,0.00018853,2]
[378482061,1754883040492,-400.0,0.00018853,2]
[378482063,1754883040501,-526.65,0.00018853,2]
[378482065,1754883040511,-400.0,0.00018853,2]
[378482067,1754883040520,-598.34,0.00018853,2]
[378482069,1754883040530,-400.0,0.00018853,2]
[378482072,1754883040541,-254.59476823,0.00018853,2]
[378482073,1754883040552,-400.0,0.00018853,2]
[378482076,1754883040562,-400.0,0.00018853,2]
[378482078,1754883040572,-400.0,0.00018853,2]
[378482079,1754883040581,-400.0,0.00018853,2]
[378482082,1754883040591,-400.0,0.00018853,2]
[378482084,1754883040601,-615.6,0.00018853,2]
[378482086,1754883040611,-400.0,0.00018853,2]
[378482088,1754883040622,-1020.27,0.00018853,2]
[378482090,1754883040632,-400.0,0.00018853,2]
[378482092,1754883040641,-812.81,0.00018853,2]
[378482093,1754883040650,-400.0,0.00018853,2]
[378482096,1754883040660,-400.0,0.00018853,2]
[378482097,1754883040669,-400.0,0.00018853,2]
[378482099,1754883040678,-400.0,0.00018853,2]
[378482102,1754883040687,-400.0,0.00018853,2]
[378482104,1754883040697,-400.0,0.00018853,2]
[378482106,1754883040706,-508.1,0.00018853,2]
[378482108,1754883040715,-400.0,0.00018853,2]
[378482110,1754883040724,-934.46,0.00018853,2]
[378482112,1754883040734,-400.0,0.00018853,2]
[378482114,1754883040743,-881.07,0.00018853,2]
[378482116,1754883040752,-400.0,0.00018853,2]
[378482118,1754883040761,-400.0,0.00018853,2]
[378482120,1754883040770,-400.0,0.00018853,2]
[378482122,1754883040780,-400.0,0.00018853,2]
[378482124,1754883040789,-1508.33,0.00018853,2]
[378482126,1754883040799,-400.0,0.00018853,2]
[378482128,1754883040808,-587.95,0.00018853,2]
[378482130,1754883040817,-400.0,0.00018853,2]
[378482132,1754883040827,-400.0,0.00018853,2]
[378482134,1754883040836,-400.0,0.00018853,2]
[378482136,1754883040846,-549.36,0.00018853,2]
[378482138,1754883040856,-736.44,0.00018853,2]
[378482140,1754883040865,-1105.97,0.00018853,2]
[378482142,1754883040875,-400.0,0.00018853,2]
[378482144,1754883040884,-1598.75,0.00018853,2]
[378482145,1754883040895,-1868.00442823,0.00018853,2]
[378482150,1754883040928,-588.0,0.00018853,2]
[378482152,1754883040939,-7168.99065,0.00018853,2]
[378482198,1754883041372,-283.61900001,0.00018853,2]
[378482201,1754883041384,-468.89592176,0.00018853,2]
[378482203,1754883041393,-780.79,0.00018853,2]
[378482205,1754883041404,-1166.44,0.00018853,2]
[378482206,1754883041413,-1356.91,0.00018853,2]
[378482209,1754883041423,-780.34,0.00018853,2]
[378482211,1754883041432,-867.83,0.00018853,2]
[378482212,1754883041442,-677.90994824,0.00018853,2]
[378482222,1754883041521,-134.74005176,0.00018853,2]
[378482224,1754883041531,-608.06,0.00018853,2]
[378482226,1754883041541,-400.0,0.00018853,2]
[378482228,1754883041555,-552.1,0.00018853,2]
[378482230,1754883041564,-955.92,0.00018853,2]
[378482231,1754883041573,-400.0,0.00018853,2]
[378482234,1754883041582,-573.3,0.00018853,2]
[378482236,1754883041592,-1699.79,0.00018853,2]
[378482238,1754883041601,-862.0,0.00018853,2]
[378482240,1754883041612,-27.85889141,0.00018853,2]
[378482242,1754883041625,-427.55440637,0.00018853,2]
[378482247,1754883041666,-1110.35670222,0.00018853,2]
[378482249,1754883041676,-424.95,0.00018853,2]
[378482251,1754883041685,-400.0,0.00018853,2]
[378482253,1754883041695,-400.0,0.00018853,2]
[378482255,1754883041704,-400.0,0.00018853,2]
[378482257,1754883041715,-318.70908171,0.00018853,2]
[378482265,1754883041776,-203.68091829,0.00018853,2]
[378482266,1754883041786,-950.51,0.00018853,2]
[378482268,1754883041796,-1600.25,0.00018853,2]
[378482270,1754883041805,-633.18,0.00018853,2]
[378482272,1754883041814,-497.98,0.00018853,2]
[378482274,1754883041823,-1276.25,0.00018853,2]
[378482276,1754883041832,-624.08,0.00018853,2]
[378482278,1754883041843,-979.73,0.00018853,2]
[378482280,1754883041852,-613.89,0.00018853,2]
[378482282,1754883041861,-400.0,0.00018853,2]
[378482284,1754883041871,-815.12,0.00018853,2]
[378482286,1754883041880,-1374.23,0.00018853,2]
[378482288,1754883041889,-400.0,0.00018853,2]
[378482290,1754883041898,-507.42,0.00018853,2]
[378482292,1754883041908,-890.79,0.00018853,2]
[378482294,1754883041918,-400.0,0.00018853,2]
[378482296,1754883041927,-400.24,0.00018853,2]
[378482298,1754883041936,-193.92007664,0.00018853,2]
[378482300,1754883041945,-554.77,0.00018853,2]
[378482303,1754883041954,-2381.22,0.00018853,2]
[378482304,1754883041964,-1272.37,0.00018853,2]
[378482306,1754883041973,-400.0,0.00018853,2]
[378482309,1754883041982,-1262.39,0.00018853,2]
[378482311,1754883041991,-677.39,0.00018853,2]
[378482312,1754883042000,-472.77,0.00018853,2]
[378482314,1754883042010,-211.73953792,0.00018863,2]
[378482317,1754883042019,-842.86497659,0.00018864,2]
[378482318,1754883042028,-457.87080987,0.00018864,2]
[378482320,1754883042037,-4014.28825948,0.00018867,2]
[378482322,1754883042047,-500.0,0.00018873,2]
[378482324,1754883042056,-500.0,0.00018873,2]
[378482326,1754883042066,-500.0,0.00018873,2]
[378482328,1754883042075,-523.80283548,0.00018873,2]
[378482330,1754883042084,-219.59816759,0.00018873,2]
[378482332,1754883042094,-500.0,0.00018873,2]
[378482334,1754883042104,-500.0,0.00018873,2]
[378482336,1754883042113,-500.0,0.00018873,2]
[378482339,1754883042123,-500.0,0.00018873,2]
[378482341,1754883042133,-320.08914235,0.00018873,2]
[378482342,1754883042142,-500.0,0.00018873,2]
[378482346,1754883042162,-500.0,0.00018873,2]
[378482348,1754883042173,-4014.28825948,0.00018884,2]
[378482350,1754883042183,-3383.726,0.00018884,2]
[378482352,1754883042192,-2365.40042002,0.00018884,2]